bitfinex/quotes_BTCUSD_20240629
["timestamp","ask_amount","ask_price","bid_price","bid_amount"]
[1719700670601,0.01285128,61023.0,61022.0,0.16190322]
[1719700670811,0.005,61023.0,61022.0,0.16190322]
[1719700672741,0.005,61023.0,61022.0,0.36518048]
[1719700672914,0.005,61023.0,61022.0,0.52751946]
[1719700673110,0.005,61023.0,61022.0,0.53751946]
[1719700673367,0.005,61023.0,61022.0,0.59367715]
[1719700673368,0.0816,61023.0,61022.0,0.59367715]
[1719700674702,0.0816,61023.0,61022.0,0.89367715]
[1719700674987,0.02458831,61042.0,61040.0,0.01540322]
[1719700675156,0.02458831,61042.0,61039.0,0.0794]
[1719700675157,0.3525047,61041.0,61039.0,0.0794]
[1719700675357,0.0078997,61041.0,61040.0,0.01540322]
[1719700675881,0.3515227,61041.0,61040.0,0.01540322]
[1719700676081,0.3515227,61041.0,61040.0,0.01640322]
[1719700676287,0.3515227,61041.0,61040.0,0.01740322]
[1719700677042,0.3609237,61041.0,61040.0,0.01740322]
[1719700677268,0.3249237,61041.0,61040.0,0.01640322]
[1719700677467,0.3249237,61041.0,61040.0,0.01540322]
[1719700677886,0.3249237,61041.0,61040.0,0.01740322]
[1719700677887,0.2161757,61041.0,61040.0,0.01740322]
[1719700678077,0.0218997,61041.0,61040.0,0.01740322]
[1719700678493,0.2563367,61041.0,61040.0,0.01740322]
[1719700678899,0.2423367,61041.0,61040.0,0.01540322]
[1719700680025,0.1614237,61041.0,61040.0,0.01540322]
[1719700680265,0.0078997,61041.0,61040.0,0.01540322]
[1719700680465,0.0078997,61041.0,61040.0,0.08110322]
[1719700680665,0.02458831,61052.0,61048.0,0.01540322]
[1719700680888,0.996574,61051.0,61048.0,0.01540322]
[1719700681233,1.00452861,61051.0,61048.0,0.01540322]
[1719700681442,1.00452861,61051.0,61049.0,0.01540322]
[1719700681443,0.441424,61050.0,61049.0,0.01540322]
[1719700681644,0.204546,61050.0,61049.0,0.01540322]
[1719700681848,0.21248504,61050.0,61049.0,0.01540322]
[1719700682021,0.87969104,61050.0,61049.0,0.01540322]
[1719700682256,0.95347204,61050.0,61049.0,0.01540322]
[1719700682460,0.00793904,61050.0,61049.0,0.01540322]
[1719700682661,1.01272204,61050.0,61049.0,0.01540322]
[1719700683067,0.67307804,61050.0,61049.0,0.01540322]
[1719700683485,0.67307804,61050.0,61048.0,0.01540322]
[1719700683688,0.00793904,61050.0,61049.0,0.01540322]
[1719700683895,0.01893904,61050.0,61049.0,0.01640322]
[1719700684098,0.723821,61050.0,61049.0,0.01640322]
[1719700684305,0.22215168,61050.0,61049.0,0.01740322]
[1719700684539,0.19411968,61050.0,61049.0,0.01740322]
[1719700684740,0.19411968,61050.0,61049.0,0.00699962]
[1719700686998,0.19411968,61050.0,61049.0,0.002]
[1719700687484,0.19411968,61050.0,61049.0,0.00699962]
[1719700688803,0.19411968,61050.0,61049.0,0.07269962]
[1719700689451,0.01994668,61050.0,61049.0,0.07269962]
[1719700689857,0.012,61050.0,61049.0,0.00699962]
[1719700689967,0.620365,61050.0,61049.0,0.00699962]
[1719700690169,0.3084539,61050.0,61049.0,0.00699962]
[1719700690589,0.2523539,61050.0,61049.0,0.00699962]
[1719700692446,0.2523539,61050.0,61049.0,0.002]
[1719700692888,0.2523539,61050.0,61049.0,0.00699962]
[1719700693089,0.2523539,61050.0,61049.0,0.002]
[1719700694973,0.3289539,61050.0,61049.0,0.002]
[1719700695174,0.3289539,61050.0,61049.0,0.00699962]
[1719700697721,0.3289539,61050.0,61049.0,0.002]
[1719700698136,0.3289539,61050.0,61049.0,0.00699962]
[1719700703322,0.7008709,61050.0,61049.0,0.00699962]
[1719700703532,0.0965689,61050.0,61049.0,0.00699962]
[1719700703979,0.7117889,61050.0,61049.0,0.00699962]
[1719700704185,0.6000049,61050.0,61049.0,0.002]
[1719700705311,0.62169331,61050.0,61049.0,0.002]
[1719700706748,0.6000049,61050.0,61049.0,0.002]
[1719700707207,0.62170942,61050.0,61049.0,0.002]
[1719700708386,0.62170942,61050.0,61049.0,0.00699962]
[1719700708589,0.62202634,61050.0,61049.0,0.00699962]
[1719700709035,0.62202634,61050.0,61049.0,0.002]
[1719700709365,0.62202634,61050.0,61049.0,0.00699962]
[1719700710438,0.62202634,61050.0,61049.0,0.00792362]
[1719700710633,0.62286634,61050.0,61049.0,0.00792362]
[1719700711346,0.55040434,61050.0,61049.0,0.00792362]
[1719700711689,0.5283829,61050.0,61049.0,0.00792362]
[1719700711888,0.55064775,61050.0,61049.0,0.00792362]
[1719700712334,0.42796175,61050.0,61049.0,0.00792362]
[1719700712785,0.37186175,61050.0,61049.0,0.00792362]
[1719700713061,0.35712475,61050.0,61049.0,0.00792362]
[1719700713279,0.35712475,61050.0,61049.0,0.07252362]
[1719700713431,0.35712475,61050.0,61049.0,0.067524]
[1719700713633,0.3348599,61050.0,61049.0,0.07252362]
[1719700714843,0.3338599,61050.0,61049.0,0.07152362]
[1719700715867,0.3338599,61050.0,61049.0,0.066524]
[1719700716245,0.3238599,61050.0,61049.0,0.066524]
[1719700716688,0.3298599,61050.0,61049.0,0.067524]
[1719700716923,0.3238599,61050.0,61049.0,0.066524]
[1719700717074,0.3228599,61050.0,61049.0,0.065524]
[1719700717278,0.3278599,61050.0,61049.0,0.065524]
[1719700718376,0.3140879,61050.0,61049.0,0.065524]
[1719700719093,0.3150879,61050.0,61049.0,0.065524]
[1719700719636,0.3017409,61050.0,61049.0,0.065524]
[1719700721676,0.2564089,61050.0,61049.0,0.14912362]
[1719700721960,0.2564089,61050.0,61049.0,0.144124]
[1719700722281,0.0148089,61050.0,61049.0,0.14912362]
[1719700722472,0.0148089,61050.0,61049.0,0.16912362]
[1719700722663,0.0148089,61050.0,61049.0,0.53473844]
[1719700722664,0.00684,61050.0,61049.0,0.53473844]
[1719700723062,0.00184,61050.0,61049.0,0.53473844]
[1719700723439,0.00184,61050.0,61049.0,0.53673844]
[1719700723640,0.62966488,61070.0,61064.0,0.00499962]
[1719700723873,1.37568072,61069.0,61064.0,0.00499962]
[1719700724073,1.37568072,61069.0,61063.0,0.143]
[1719700724074,1.22991,61068.0,61065.0,0.00499962]
[1719700724279,1.22991,61068.0,61063.0,0.143]
[1719700724476,0.00810737,61067.0,61063.0,0.143]
[1719700724670,0.243173,61066.0,61063.0,0.143]
[1719700724969,0.00810096,61065.0,61063.0,0.143]
[1719700725392,0.222338,61064.0,61063.0,0.143]
[1719700725722,0.23043118,61064.0,61063.0,0.143]
[1719700725936,0.20578118,61064.0,61063.0,0.14799962]
[1719700726144,0.16578118,61064.0,61063.0,0.144]
[1719700726553,0.16578118,61064.0,61063.0,0.145]
[1719700726754,0.16578118,61064.0,61063.0,0.14999962]
[1719700726974,0.16578118,61064.0,61063.0,0.14899962]
[1719700727339,0.17978118,61064.0,61063.0,0.14999962]
[1719700728124,0.17978118,61064.0,61063.0,0.14899962]
[1719700728531,0.17978118,61064.0,61063.0,0.14999962]
[1719700729559,0.17978118,61064.0,61063.0,0.145]
[1719700730255,0.17978118,61064.0,61063.0,0.14999962]
[1719700730890,0.171688,61064.0,61063.0,0.14999962]
[1719700731321,0.17978982,61064.0,61063.0,0.14999962]
[1719700731525,0.17978982,61064.0,61063.0,0.08559962]
[1719700731686,0.17978982,61064.0,61063.0,0.145]
[1719700732323,0.17978982,61064.0,61063.0,0.14999962]
[1719700732704,0.171688,61064.0,61063.0,0.14999962]
[1719700733111,0.17978982,61064.0,61063.0,0.14999962]
[1719700736807,0.17978982,61064.0,61063.0,0.145]
[1719700737020,0.17978982,61064.0,61063.0,0.14999962]
[1719700741283,0.02210182,61064.0,61063.0,0.14999962]
[1719700741433,0.23153882,61064.0,61063.0,0.14999962]
[1719700741635,0.02210182,61064.0,61063.0,0.14999962]
[1719700741834,0.23153882,61064.0,61063.0,0.14999962]
[1719700742039,0.23679482,61064.0,61063.0,0.14999962]
[1719700742267,0.23679482,61064.0,61063.0,0.18499958]
[1719700742268,0.13652482,61064.0,61063.0,0.18499958]
[1719700742465,0.02210182,61064.0,61063.0,0.18499958]
[1719700742665,0.02210182,61064.0,61063.0,0.14999962]
[1719700742867,0.014,61064.0,61063.0,0.14999962]
[1719700743470,0.014,61064.0,61063.0,0.14892362]
[1719700743647,0.0633,61074.0,61070.0,0.08479962]
[1719700743844,0.94336821,61073.0,61070.0,0.08479962]
[1719700744045,0.69787,61072.0,61070.0,0.08479962]
[1719700744313,0.00807055,61071.0,61070.0,0.06669962]
[1719700744596,0.16272855,61071.0,61070.0,0.06669962]
[1719700744764,0.16272855,61071.0,61070.0,0.14649962]
[1719700745337,0.16272855,61071.0,61070.0,0.1415]
[1719700745765,0.16272855,61071.0,61070.0,0.14649962]
[1719700746642,0.00807055,61071.0,61070.0,0.14749962]
[1719700746867,0.235358,61072.0,61070.0,0.14749962]
[1719700747140,0.00807055,61071.0,61070.0,0.14849962]
[1719700747378,0.16267855,61071.0,61070.0,0.14749962]
[1719700747590,0.17067855,61071.0,61070.0,0.14749962]
[1719700748998,0.16267855,61071.0,61070.0,0.14649962]
[1719700749890,0.16467855,61071.0,61070.0,0.14649962]
[1719700750697,0.16467855,61071.0,61070.0,0.1415]
[1719700751020,0.16467855,61071.0,61070.0,0.14649962]
[1719700751826,0.27325755,61071.0,61070.0,0.14649962]
[1719700753359,0.265187,61071.0,61070.0,0.14649962]
[1719700757039,0.265187,61071.0,61070.0,0.1415]
[1719700757444,0.341787,61071.0,61066.0,0.00499962]
[1719700757652,1.228779,61070.0,61066.0,0.00499962]
[1719700757861,1.228779,61070.0,61065.0,0.00499962]
[1719700757862,0.764496,61069.0,61065.0,0.00499962]
[1719700759901,0.769496,61069.0,61065.0,0.00499962]
[1719700760099,0.766474,61068.0,61065.0,0.00499962]
[1719700760912,0.0766,61066.0,61065.0,0.00499962]
[1719700761521,0.200475,61066.0,61063.0,0.000924]
[1719700761726,0.399369,61065.0,61063.0,0.000924]
[1719700761936,0.399369,61065.0,61063.0,0.00592362]
[1719700762763,0.351159,61065.0,61063.0,0.00592362]
[1719700763135,0.351159,61064.0,61063.0,0.00592362]
[1719700763342,0.351159,61065.0,61063.0,0.00592362]
[1719700763472,0.351159,61065.0,61063.0,0.00692362]
[1719700763670,0.351159,61065.0,61064.0,0.00499962]
[1719700765388,0.352159,61065.0,61064.0,0.00499962]
[1719700765768,0.352159,61065.0,61063.0,0.000924]
[1719700765769,0.0619,61064.0,61063.0,0.000924]
[1719700765973,0.0619,61063.0,61057.0,0.00499962]
[1719700766176,1.832085,61062.0,61057.0,0.00499962]
[1719700766381,1.714281,61061.0,61057.0,0.00499962]
[1719700766578,0.01923227,61060.0,61057.0,0.00499962]
[1719700766807,1.68236433,61060.0,61052.0,0.00499962]
[1719700767007,0.03562733,61060.0,61052.0,0.00499962]
[1719700767259,1.073023,61059.0,61052.0,0.00499962]
[1719700767652,0.675515,61058.0,61057.0,0.001]
[1719700767871,0.01923227,61058.0,61057.0,0.001]
[1719700768045,0.68341927,61058.0,61057.0,0.001]
[1719700768252,0.69531948,61058.0,61057.0,0.001]
[1719700768721,0.69531948,61058.0,61052.0,0.00599962]
[1719700768722,0.0619,61057.0,61052.0,0.001]
[1719700768921,2.868976,61057.0,61049.0,0.000924]
[1719700769127,0.12629435,61058.0,61052.0,0.001]
[1719700769128,0.01500038,61054.0,61052.0,0.001]
[1719700769329,1.91584938,61053.0,61052.0,0.001]
[1719700769486,1.93224444,61053.0,61049.0,0.000924]
[1719700769680,1.25275448,61052.0,61049.0,0.000924]
[1719700769869,0.766862,61051.0,61049.0,0.000924]
[1719700770069,0.835877,61050.0,61049.0,0.000924]
[1719700771288,0.804428,61050.0,61049.0,0.000924]
[1719700771711,0.88841034,61050.0,61042.0,0.00499962]
[1719700771927,3.880388,61049.0,61040.0,0.04924465]
[1719700772126,0.01500038,61045.0,61040.0,0.04924465]
[1719700772324,0.01500038,61045.0,61040.0,0.02994465]
[1719700772325,1.661314,61044.0,61040.0,0.02994465]
[1719700772516,1.500094,61043.0,61036.0,0.00499962]
[1719700772845,1.425877,61042.0,61037.0,0.00499962]
[1719700773030,0.952961,61041.0,61037.0,0.00499962]
[1719700773178,0.01639506,61045.0,61037.0,0.00499962]
[1719700773179,0.557873,61040.0,61037.0,0.00499962]
[1719700773385,0.380164,61039.0,61037.0,0.00499962]
[1719700773591,0.31728,61038.0,61032.0,0.01639506]
[1719700773805,1.369115,61037.0,61032.0,0.02139468]
[1719700774000,1.678166,61036.0,61032.0,0.02139468]
[1719700774234,0.01639506,61038.0,61032.0,0.02139468]
[1719700774235,1.353958,61035.0,61032.0,0.02139468]
[1719700774437,1.610952,61037.0,61032.0,0.02139468]
[1719700774789,1.646952,61036.0,61032.0,0.02139468]
[1719700774993,1.653878,61037.0,61032.0,0.02339468]
[1719700775245,1.612113,61036.0,61032.0,0.02339468]
[1719700775413,1.571516,61036.0,61034.0,0.00499962]
[1719700775619,1.571516,61036.0,61032.0,0.001]
[1719700775620,0.0088,61035.0,61032.0,0.001]
[1719700775819,0.760387,61034.0,61032.0,0.002]
[1719700777118,0.760387,61034.0,61032.0,0.001]
[1719700777318,0.760387,61034.0,61030.0,0.00499962]
[1719700777526,0.760387,61034.0,61032.0,0.001]
[1719700777738,0.760387,61034.0,61030.0,0.00499962]
[1719700777940,0.60345,61033.0,61030.0,0.00499962]
[1719700778136,0.0148,61035.0,61030.0,0.00499962]
[1719700778137,0.553726,61032.0,61030.0,0.00499962]
[1719700778340,0.005,61034.0,61030.0,0.00499962]
[1719700778341,0.496579,61031.0,61030.0,0.00499962]
[1719700779390,0.179318,61031.0,61030.0,0.14789962]
[1719700779647,0.01639506,61038.0,61034.0,0.00499962]
[1719700779937,0.01639506,61038.0,61030.0,0.1429]
[1719700779938,0.262395,61037.0,61036.0,0.00499962]
[1719700781304,0.262395,61037.0,61032.0,0.00499962]
[1719700781510,0.262395,61037.0,61034.0,0.00499962]
[1719700781889,0.267395,61037.0,61036.0,0.001]
[1719700782091,0.276395,61037.0,61036.0,0.002]
[1719700782411,0.271395,61037.0,61036.0,0.001]
[1719700782828,0.276395,61037.0,61036.0,0.001]
[1719700783251,0.267395,61037.0,61034.0,0.00599962]
[1719700783451,0.299332,61036.0,61034.0,0.00599962]
[1719700784087,0.299332,61036.0,61034.0,0.00499962]
[1719700784391,0.493681,61037.0,61036.0,0.001]
[1719700784615,0.005,61037.0,61036.0,0.001]
[1719700784734,0.49742,61037.0,61036.0,0.001]
[1719700784952,0.49742,61037.0,61034.0,0.00499962]
[1719700785150,0.310071,61036.0,61034.0,0.00599962]
[1719700785351,0.172046,61035.0,61034.0,0.00599962]
[1719700786470,0.172046,61035.0,61034.0,0.00499962]
[1719700786680,0.263577,61036.0,61034.0,0.00499962]
[1719700787407,0.005,61035.0,61034.0,0.00499962]
[1719700787614,0.009,61035.0,61034.0,0.00499962]
[1719700787987,0.005,61035.0,61034.0,0.00599962]
[1719700788192,0.006,61036.0,61034.0,0.00499962]
[1719700788387,0.011,61036.0,61035.0,0.00499962]
[1719700788862,0.285433,61036.0,61035.0,0.00499962]
[1719700789833,0.279433,61036.0,61035.0,0.00499962]
[1719700790024,0.282433,61036.0,61035.0,0.00499962]
[1719700790239,0.003,61036.0,61035.0,0.00499962]
[1719700790456,0.301761,61036.0,61035.0,0.00499962]
[1719700790990,0.304761,61036.0,61035.0,0.00499962]
[1719700792885,0.304761,61036.0,61035.0,0.08739962]
[1719700793068,0.304761,61036.0,61035.0,0.15339962]
[1719700793638,0.298761,61036.0,61035.0,0.15339962]
[1719700793839,0.002,61036.0,61035.0,0.15339962]
[1719700794173,0.004,61036.0,61035.0,0.15339962]
[1719700794515,0.311248,61036.0,61035.0,0.15339962]
[1719700794715,0.004,61036.0,61035.0,0.15339962]
[1719700794969,0.311248,61036.0,61035.0,0.15339962]
[1719700795109,0.004,61036.0,61035.0,0.15339962]
[1719700797748,0.310102,61036.0,61035.0,0.15339962]
[1719700797946,0.004,61036.0,61035.0,0.15339962]
[1719700798308,0.310102,61036.0,61035.0,0.15339962]
[1719700798526,0.004,61036.0,61035.0,0.15339962]
[1719700798687,0.310102,61036.0,61035.0,0.15339962]
[1719700801366,0.252479,61036.0,61035.0,0.15339962]
[1719700801581,0.183176,61036.0,61035.0,0.15339962]
[1719700801978,0.147489,61036.0,61035.0,0.15339962]
[1719700810210,0.345091,61036.0,61035.0,0.15339962]
[1719700813301,0.345091,61036.0,61035.0,0.1484]
[1719700813730,0.345091,61036.0,61035.0,0.15339962]
[1719700819735,0.345091,61036.0,61035.0,0.1484]
[1719700819935,0.345091,61036.0,61035.0,0.15339962]
[1719700822944,0.247179,61036.0,61035.0,0.15339962]
[1719700823154,0.180138,61036.0,61035.0,0.15339962]
[1719700824508,0.004,61036.0,61035.0,0.15339962]
[1719700825744,0.121632,61036.0,61035.0,0.15339962]
[1719700826304,0.121632,61036.0,61035.0,0.1484]
[1719700826735,0.121632,61036.0,61035.0,0.15339962]
[1719700831007,0.44103485,61047.0,61036.0,0.00499962]
[1719700831209,2.89346198,61046.0,61036.0,0.04093194]
[1719700831422,2.272034,61045.0,61036.0,0.04093194]
[1719700832016,0.01490767,61044.0,61036.0,0.04093194]
[1719700832455,1.673432,61043.0,61036.0,0.04093194]
[1719700832654,0.02911155,61042.0,61036.0,0.04193194]
[1719700832849,0.0766,61037.0,61036.0,0.04193194]
[1719700833128,0.419947,61037.0,61036.0,0.002]
[1719700833349,0.4016271,61037.0,61035.0,0.15339962]
[1719700833549,0.0915071,61037.0,61036.0,0.001]
[1719700833675,0.0915071,61037.0,61036.0,0.002]
[1719700833882,0.0915071,61037.0,61035.0,0.15339962]
[1719700834079,0.31012,61036.0,61035.0,0.15339962]
[1719700834653,0.32503032,61036.0,61035.0,0.15339962]
[1719700835141,0.01491032,61036.0,61035.0,0.15339962]
[1719700835339,0.32503032,61036.0,61035.0,0.15339962]
[1719700836128,0.32703032,61036.0,61035.0,0.15339962]
[1719700837432,0.23112032,61036.0,61035.0,0.15339962]
[1719700837824,0.23312032,61036.0,61035.0,0.15339962]
[1719700838763,0.19704932,61036.0,61035.0,0.15339962]
[1719700842045,0.19704932,61036.0,61035.0,0.15432362]
[1719700844918,0.19504932,61036.0,61035.0,0.15432362]
[1719700845414,0.19704932,61036.0,61035.0,0.15432362]
[1719700845743,0.19504932,61036.0,61035.0,0.15432362]
[1719700846091,0.19704932,61036.0,61035.0,0.15432362]
[1719700846491,0.20790232,61036.0,61035.0,0.15432362]
[1719700846914,0.18782832,61036.0,61035.0,0.15432362]
[1719700847320,0.14584932,61036.0,61035.0,0.15432362]
[1719700850736,0.12106932,61036.0,61035.0,0.15432362]
[1719700850941,0.01891032,61036.0,61035.0,0.15432362]
[1719700852610,0.01891032,61036.0,61035.0,0.3927083]
[1719700852818,0.01891032,61036.0,61035.0,0.55504728]
[1719700853027,0.004,61036.0,61035.0,0.55504728]
[1719700853842,0.004,61036.0,61035.0,0.5366626]
[1719700854080,0.00084,61047.0,61046.0,0.00499962]
[1719700854276,0.96771906,61047.0,61046.0,0.00499962]
[1719700854680,0.98008316,61047.0,61046.0,0.00499962]
[1719700855266,0.35749716,61047.0,61046.0,0.00499962]
[1719700855467,0.36049716,61047.0,61046.0,0.00499962]
[1719700856474,0.36649716,61047.0,61046.0,0.00599962]
[1719700859467,0.3501021,61047.0,61046.0,0.00599962]
[1719700861005,0.3501021,61047.0,61046.0,0.08289962]
[1719700862510,0.6283301,61047.0,61046.0,0.08289962]
[1719700863309,0.3823301,61047.0,61046.0,0.08289962]
[1719700870026,0.3823301,61047.0,61046.0,0.00599962]
[1719700870448,0.2766441,61047.0,61046.0,0.00599962]
[1719700872430,0.3532441,61047.0,61046.0,0.00599962]
[1719700874327,0.3157251,61047.0,61046.0,0.00599962]
[1719700876576,0.3157251,61047.0,61046.0,0.00692362]
[1719700876688,0.3097251,61047.0,61046.0,0.00592362]
[1719700876887,0.3067251,61047.0,61046.0,0.00592362]
[1719700877098,0.3087251,61047.0,61046.0,0.00592362]
[1719700877302,0.3107251,61047.0,61046.0,0.00592362]
[1719700880240,0.3127251,61047.0,61046.0,0.00592362]
[1719700891779,0.3107251,61047.0,61046.0,0.00592362]
[1719700892012,0.0938041,61047.0,61046.0,0.00592362]
[1719700892211,0.0918041,61047.0,61046.0,0.00592362]
[1719700892370,0.0938041,61047.0,61046.0,0.00592362]
[1719700892573,0.0918041,61047.0,61046.0,0.00592362]
[1719700892790,0.0938041,61047.0,61046.0,0.00592362]
[1719700893000,0.0958041,61047.0,61046.0,0.00592362]
[1719700894002,0.3513431,61047.0,61046.0,0.00592362]
[1719700895107,0.08785419,61047.0,61046.0,0.00592362]
[1719700895305,0.0103128,61047.0,61046.0,0.00592362]
[1719700895729,1.814331,61053.0,61046.0,0.00592362]
[1719700895930,0.237716,61047.0,61046.0,0.00592362]
[1719700896375,0.2480288,61047.0,61046.0,0.00592362]
[1719700898677,0.2480288,61047.0,61046.0,0.00692362]
[1719700899040,0.2480288,61047.0,61046.0,0.00592362]
[1719700899331,0.2480288,61047.0,61046.0,0.000924]
[1719700899534,0.1880198,61047.0,61046.0,0.00592362]
[1719700906517,0.1890198,61047.0,61046.0,0.00592362]
[1719700906768,0.1376938,61047.0,61046.0,0.00592362]
[1719700907093,0.1356938,61047.0,61046.0,0.00592362]
[1719700907587,0.1355338,61047.0,61046.0,0.00592362]
[1719700907952,0.1365338,61047.0,61046.0,0.00592362]
[1719700908826,0.1385338,61047.0,61046.0,0.00592362]
[1719700924240,0.0141528,61047.0,61046.0,0.00592362]
[1719700924445,0.00384,61047.0,61046.0,0.00592362]
[1719700925037,0.00384,61047.0,61046.0,0.00587281]
[1719700925725,0.00184,61047.0,61046.0,0.00587281]
[1719700925927,0.00184,61047.0,61046.0,0.00687281]
[1719700926778,0.00084,61047.0,61046.0,0.00687281]
[1719700926985,0.00084,61047.0,61046.0,0.00787281]
[1719700927648,0.00084,61047.0,61046.0,0.00687281]
[1719700927858,0.00084,61047.0,61046.0,0.00787281]
[1719700946507,0.13400652,61047.0,61046.0,0.00787281]
[1719700946714,0.25149652,61047.0,61046.0,0.00787281]
[1719700947878,0.25149652,61047.0,61046.0,0.00348993]
[1719700959518,0.23721652,61047.0,61046.0,0.00348993]
[1719700967977,0.21721652,61047.0,61046.0,0.00348993]
[1719700971331,0.21721652,61047.0,61046.0,0.00441393]
[1719700973498,0.21721652,61047.0,61045.0,0.13092985]
[1719700973698,0.221833,61046.0,61045.0,0.13092985]
[1719700973923,0.23194475,61046.0,61045.0,0.13092985]
[1719700975182,0.23194475,61046.0,61045.0,0.13292985]
[1719700975563,0.23194475,61046.0,61045.0,0.13192985]
[1719700975732,0.23194475,61046.0,61045.0,0.13092985]
[1719700975948,0.23194475,61046.0,61045.0,0.13492985]
[1719700983882,0.21633075,61046.0,61045.0,0.13492985]
[1719700985399,0.01011175,61046.0,61045.0,0.13492985]
[1719700985825,0.00084,61047.0,61046.0,0.0762]
[1719700987281,0.00084,61047.0,61046.0,0.0772]
[1719700988514,0.00084,61047.0,61046.0,0.0782]
[1719700989754,0.106139,61047.0,61046.0,0.0782]
[1719700989953,0.00912021,61047.0,61046.0,0.0782]
[1719700990309,0.00084,61047.0,61046.0,0.0782]
[1719700990508,0.109631,61047.0,61046.0,0.002]
[1719700990735,0.19471121,61047.0,61046.0,0.0782]
[1719700990939,0.00912021,61047.0,61046.0,0.0782]
[1719700991258,0.15739721,61047.0,61046.0,0.0782]
[1719700991433,0.59859,61062.0,61048.0,0.02]
[1719700991638,3.59331898,61059.0,61048.0,0.02]
[1719700991837,3.104202,61058.0,61048.0,0.02]
[1719700992005,0.023,61057.0,61048.0,0.02]
[1719700992211,2.434042,61056.0,61048.0,0.02]
[1719700992646,2.358472,61056.0,61048.0,0.021]
[1719700992838,2.455741,61056.0,61048.0,0.021]
[1719700993762,2.455741,61056.0,61048.0,0.02]
[1719700993955,2.455741,61056.0,61048.0,0.05321861]
[1719700994223,2.457741,61056.0,61048.0,0.05321861]
[1719700994619,2.121762,61055.0,61048.0,0.021]
[1719700995803,2.121762,61055.0,61048.0,0.022]
[1719700996005,2.001762,61055.0,61048.0,0.021]
[1719700996424,2.011762,61055.0,61049.0,0.0791]
[1719700996827,1.927732,61054.0,61049.0,0.0791]
[1719700997440,0.02196491,61053.0,61049.0,0.0791]
[1719700997708,1.87929491,61053.0,61049.0,0.1406]
[1719700997934,1.264965,61052.0,61049.0,0.1406]
[1719700998164,1.264965,61052.0,61049.0,0.1396]
[1719700998376,1.207349,61052.0,61049.0,0.1396]
[1719700998623,1.207349,61052.0,61049.0,0.1406]
[1719700998833,0.02197564,61051.0,61049.0,0.1406]
[1719700999187,0.272844,61050.0,61049.0,0.1406]
[1719700999386,0.272844,61050.0,61049.0,0.1416]
[1719700999714,0.272844,61050.0,61049.0,0.1396]
[1719700999965,0.272844,61050.0,61049.0,0.1406]
[1719701000166,0.272844,61050.0,61049.0,0.1396]
[1719701000369,0.456771,61051.0,61049.0,0.1396]
[1719701000982,0.002,61050.0,61049.0,0.1396]
[1719701001152,0.294844,61050.0,61049.0,0.1396]
[1719701001354,0.292844,61050.0,61049.0,0.1396]
[1719701001559,0.458771,61051.0,61049.0,0.1396]
[1719701001767,0.295844,61050.0,61049.0,0.1396]
[1719701002523,0.292844,61050.0,61049.0,0.1396]
[1719701003158,0.294844,61050.0,61049.0,0.1396]
[1719701003610,0.297844,61050.0,61049.0,0.1396]
[1719701004207,0.298684,61050.0,61049.0,0.1396]
[1719701007853,0.271179,61050.0,61049.0,0.1396]
[1719701014648,0.271179,61050.0,61049.0,0.1596]
[1719701015765,0.271179,61050.0,61049.0,0.1396]
[1719701016371,0.271179,61050.0,61049.0,0.1596]
[1719701017195,0.364932,61050.0,61049.0,0.1596]
[1719701019783,0.344932,61050.0,61049.0,0.1596]
[1719701022373,0.314134,61050.0,61049.0,0.1596]
[1719701035388,0.314134,61050.0,61049.0,0.160524]
[1719701035590,0.314134,61050.0,61049.0,0.140524]
[1719701036065,0.280789,61050.0,61049.0,0.140524]
[1719701039146,0.280789,61050.0,61049.0,0.160524]
[1719701039349,0.00584,61050.0,61049.0,0.160524]
[1719701039558,0.280774,61050.0,61049.0,0.140524]
[1719701039764,0.280774,61050.0,61049.0,0.160524]
[1719701040347,0.00584,61050.0,61049.0,0.020924]
[1719701040548,0.00584,61050.0,61049.0,0.168324]
[1719701041330,0.00384,61050.0,61049.0,0.168324]
[1719701041768,0.00084,61050.0,61049.0,0.168324]
[1719701042390,0.00084,61050.0,61049.0,0.169324]
[1719701042803,0.00084,61050.0,61049.0,0.170324]
[1719701044415,0.00084,61050.0,61049.0,0.41548675]
[1719701044620,0.00084,61050.0,61049.0,0.370324]
[1719701048497,0.00084,61050.0,61049.0,0.53266298]
[1719701063962,0.00084,61050.0,61049.0,0.54266298]
[1719701064284,0.00084,61050.0,61049.0,0.53266298]
[1719701064495,0.00084,61050.0,61049.0,0.59505962]
[1719701068484,0.00084,61050.0,61049.0,0.70505962]
[1719701068843,0.00084,61050.0,61049.0,0.64266298]
[1719701069463,0.00084,61050.0,61049.0,0.64166298]
[1719701069668,0.00084,61050.0,61049.0,0.64266298]
[1719701069878,0.00084,61050.0,61049.0,0.64466298]
[1719701075526,0.15073923,61071.0,61064.0,0.02]
[1719701075738,0.18533898,61070.0,61064.0,0.02]
[1719701076101,2.01929865,61070.0,61065.0,0.02]
[1719701076309,1.19356,61069.0,61065.0,0.02]
[1719701077373,1.34383,61069.0,61065.0,0.02]
[1719701077721,0.0215509,61068.0,61065.0,0.021]
[1719701078135,0.802267,61067.0,61065.0,0.021]
[1719701078310,0.802267,61067.0,61065.0,0.022]
[1719701078722,0.02161119,61066.0,61065.0,0.022]
[1719701078904,0.02161119,61066.0,61065.0,0.021]
[1719701079105,1.19623119,61066.0,61065.0,0.021]
[1719701079324,1.19623119,61066.0,61065.0,0.001]
[1719701079531,1.19623119,61066.0,61065.0,0.002]
[1719701079692,1.19623119,61066.0,61064.0,0.02]
[1719701079892,1.11916519,61065.0,61064.0,0.02]
[1719701080114,0.56396519,61065.0,61064.0,0.02]
[1719701080342,0.56396519,61065.0,61059.0,0.03639506]
[1719701080544,1.152832,61064.0,61060.0,0.02]
[1719701080787,1.06261706,61064.0,61061.0,0.02]
[1719701080899,0.400514,61063.0,61061.0,0.02]
[1719701082639,0.401514,61063.0,61061.0,0.021]
[1719701082839,0.001,61063.0,61062.0,0.02]
[1719701083243,0.378305,61063.0,61062.0,0.02]
[1719701083451,0.310145,61063.0,61062.0,0.02]
[1719701083646,0.322145,61063.0,61062.0,0.02]
[1719701084046,0.302145,61063.0,61062.0,0.02]
[1719701084355,0.249145,61063.0,61062.0,0.02]
[1719701084648,0.248145,61063.0,61062.0,0.02]